{"text_format":"3","workbook":"xlsx","n_sheets":1,"sheets":["Vyúčtování výdajů"],"not_rendered":{"images":2,"defined_names":12},"read":"whole","date_system":"1900"}

{"sheet":"Vyúčtování výdajů","index":0,"n_rows":24,"n_cols":13,"rows_kept":24,"merged":[[3,2,3,3],[3,5,3,6],[3,9,3,10],[4,2,4,3],[4,5,4,6],[4,9,4,10],[5,2,5,3],[5,5,5,6],[5,9,5,10],[6,2,6,3],[6,5,6,6],[6,9,6,10],[7,9,7,10]]}
[null,"VYÚČTOVÁNÍ VÝDAJŮ"]
[null,"CONTOSO S.R.O."]
[null,"Modrá 44, 765 43 Ostrava"]
[null,"TELEFON",4255550121,null,"JMÉNO","Kateřina Sýkorová",null,null,"ÚČEL","Roční seminář o prodeji",null,"SAZBA NA KM",{"v":10,"d":"Kč10.00/ km"}]
[null,"FAX",4255550122,null,"ODDĚLENÍ","Prodej",null,null,"ZAČÁTEK",{"$f":"IFERROR(MIN(Výdaje[DATUM]),\"\")","v":"2018-06-04"},null,"SAZBA NA STRAVU",{"v":600,"d":"Kč600.00/ den"}]
[null,"E-MAIL","info@contoso.com",null,"POZICE","Výkonná ředitelka",null,null,"KONEC",{"$f":"IFERROR(MAX(Výdaje[DATUM]),\"\")","v":"2018-07-04"},null,"SAZBA NA HOTEL",{"v":4000,"d":"Kč4,000.00/noc"}]
[null,"WEB","www.contoso.com",null,"NADŘÍZENÝ","Miloš Zahradníček",null,null,"PŘIPRAVIL(A)","Kateřina Sýkorová",null,"SAZBA NA TELEFON",{"v":200,"d":"Kč200.00/ den"}]
[{"$nulls":8},"SCHVÁLIL(A)","Miloš Zahradníček",null,"SAZBA – RŮZNÉ",{"v":1000,"d":"Kč1,000.00/ den"}]
[]
[null,"DATUM","ÚČET","POPIS","HOTEL","DOPRAVA","STRAVA","TELEFON","RŮZNÉ","TACHOMETR \n– ZAČÁTEK","TACHOMETR \n– KONEC","KILOMETRY \nCELKEM","CELKEM "]
[null,{"$f":"TODAY()","v":"2018-06-04"},"Prodej","Najeté kilometry",{"$nulls":4},{"v":1000,"d":"1,000.00 Kč"},{"v":11378.5,"d":"11,378.5 km"},{"v":11456.2,"d":"11,456.2 km"},{"$f":"IF(COUNTA(Výdaje[[#This Row],[TACHOMETR \n– ZAČÁTEK]:[TACHOMETR \n– KONEC]])=2,(Výdaje[[#This Row],[TACHOMETR \n– KONEC]]-Výdaje[[#This Row],[TACHOMETR \n– ZAČÁTEK]])*SazbaNaKilometr,\"\")","v":{"v":777.0000000000073,"d":"777.00 Kč"}},{"$f":"IF(COUNTA(Výdaje[[#This Row],[DATUM]:[TACHOMETR \n– KONEC]])=0,\"\",SUM(Výdaje[[#This Row],[HOTEL]:[DOPRAVA]],Výdaje[[#This Row],[STRAVA]:[RŮZNÉ]],((Výdaje[[#This Row],[TACHOMETR \n– KONEC]]-Výdaje[[#This Row],[TACHOMETR \n– ZAČÁTEK]])*(SazbaNaKilometr))))","v":{"v":1777.0000000000073,"d":"1,777.00 Kč"}}]
[null,{"$f":"TODAY()+30","v":"2018-07-04"},"Prodej","Konference",{"v":8900,"d":"8,900.00 Kč"},{"v":4500,"d":"4,500.00 Kč"},{"v":400,"d":"400.00 Kč"},null,{"v":100,"d":"100.00 Kč"},{"v":11500,"d":"11,500.0 km"},{"v":11560,"d":"11,560.0 km"},{"$f":"IF(COUNTA(Výdaje[[#This Row],[TACHOMETR \n– ZAČÁTEK]:[TACHOMETR \n– KONEC]])=2,(Výdaje[[#This Row],[TACHOMETR \n– KONEC]]-Výdaje[[#This Row],[TACHOMETR \n– ZAČÁTEK]])*SazbaNaKilometr,\"\")","v":{"v":600,"d":"600.00 Kč"}},{"$f":"IF(COUNTA(Výdaje[[#This Row],[DATUM]:[TACHOMETR \n– KONEC]])=0,\"\",SUM(Výdaje[[#This Row],[HOTEL]:[DOPRAVA]],Výdaje[[#This Row],[STRAVA]:[RŮZNÉ]],((Výdaje[[#This Row],[TACHOMETR \n– KONEC]]-Výdaje[[#This Row],[TACHOMETR \n– ZAČÁTEK]])*(SazbaNaKilometr))))","v":{"v":14500,"d":"14,500.00 Kč"}}]
[{"$nulls":11},{"$f":"IF(COUNTA(Výdaje[[#This Row],[TACHOMETR \n– ZAČÁTEK]:[TACHOMETR \n– KONEC]])=2,(Výdaje[[#This Row],[TACHOMETR \n– KONEC]]-Výdaje[[#This Row],[TACHOMETR \n– ZAČÁTEK]])*SazbaNaKilometr,\"\")","v":""},{"$f":"IF(COUNTA(Výdaje[[#This Row],[DATUM]:[TACHOMETR \n– KONEC]])=0,\"\",SUM(Výdaje[[#This Row],[HOTEL]:[DOPRAVA]],Výdaje[[#This Row],[STRAVA]:[RŮZNÉ]],((Výdaje[[#This Row],[TACHOMETR \n– KONEC]]-Výdaje[[#This Row],[TACHOMETR \n– ZAČÁTEK]])*(SazbaNaKilometr))))","v":{"v":0,"d":"0.00 Kč"}}]
[{"$nulls":11},{"$f":"IF(COUNTA(Výdaje[[#This Row],[TACHOMETR \n– ZAČÁTEK]:[TACHOMETR \n– KONEC]])=2,(Výdaje[[#This Row],[TACHOMETR \n– KONEC]]-Výdaje[[#This Row],[TACHOMETR \n– ZAČÁTEK]])*SazbaNaKilometr,\"\")","v":""},{"$f":"IF(COUNTA(Výdaje[[#This Row],[DATUM]:[TACHOMETR \n– KONEC]])=0,\"\",SUM(Výdaje[[#This Row],[HOTEL]:[DOPRAVA]],Výdaje[[#This Row],[STRAVA]:[RŮZNÉ]],((Výdaje[[#This Row],[TACHOMETR \n– KONEC]]-Výdaje[[#This Row],[TACHOMETR \n– ZAČÁTEK]])*(SazbaNaKilometr))))","v":{"v":0,"d":"0.00 Kč"}}]
[{"$nulls":11},{"$f":"IF(COUNTA(Výdaje[[#This Row],[TACHOMETR \n– ZAČÁTEK]:[TACHOMETR \n– KONEC]])=2,(Výdaje[[#This Row],[TACHOMETR \n– KONEC]]-Výdaje[[#This Row],[TACHOMETR \n– ZAČÁTEK]])*SazbaNaKilometr,\"\")","v":""},{"$f":"IF(COUNTA(Výdaje[[#This Row],[DATUM]:[TACHOMETR \n– KONEC]])=0,\"\",SUM(Výdaje[[#This Row],[HOTEL]:[DOPRAVA]],Výdaje[[#This Row],[STRAVA]:[RŮZNÉ]],((Výdaje[[#This Row],[TACHOMETR \n– KONEC]]-Výdaje[[#This Row],[TACHOMETR \n– ZAČÁTEK]])*(SazbaNaKilometr))))","v":{"v":0,"d":"0.00 Kč"}}]
[{"$nulls":11},{"$f":"IF(COUNTA(Výdaje[[#This Row],[TACHOMETR \n– ZAČÁTEK]:[TACHOMETR \n– KONEC]])=2,(Výdaje[[#This Row],[TACHOMETR \n– KONEC]]-Výdaje[[#This Row],[TACHOMETR \n– ZAČÁTEK]])*SazbaNaKilometr,\"\")","v":""},{"$f":"IF(COUNTA(Výdaje[[#This Row],[DATUM]:[TACHOMETR \n– KONEC]])=0,\"\",SUM(Výdaje[[#This Row],[HOTEL]:[DOPRAVA]],Výdaje[[#This Row],[STRAVA]:[RŮZNÉ]],((Výdaje[[#This Row],[TACHOMETR \n– KONEC]]-Výdaje[[#This Row],[TACHOMETR \n– ZAČÁTEK]])*(SazbaNaKilometr))))","v":{"v":0,"d":"0.00 Kč"}}]
[{"$nulls":11},{"$f":"IF(COUNTA(Výdaje[[#This Row],[TACHOMETR \n– ZAČÁTEK]:[TACHOMETR \n– KONEC]])=2,(Výdaje[[#This Row],[TACHOMETR \n– KONEC]]-Výdaje[[#This Row],[TACHOMETR \n– ZAČÁTEK]])*SazbaNaKilometr,\"\")","v":""},{"$f":"IF(COUNTA(Výdaje[[#This Row],[DATUM]:[TACHOMETR \n– KONEC]])=0,\"\",SUM(Výdaje[[#This Row],[HOTEL]:[DOPRAVA]],Výdaje[[#This Row],[STRAVA]:[RŮZNÉ]],((Výdaje[[#This Row],[TACHOMETR \n– KONEC]]-Výdaje[[#This Row],[TACHOMETR \n– ZAČÁTEK]])*(SazbaNaKilometr))))","v":{"v":0,"d":"0.00 Kč"}}]
[{"$nulls":11},{"$f":"IF(COUNTA(Výdaje[[#This Row],[TACHOMETR \n– ZAČÁTEK]:[TACHOMETR \n– KONEC]])=2,(Výdaje[[#This Row],[TACHOMETR \n– KONEC]]-Výdaje[[#This Row],[TACHOMETR \n– ZAČÁTEK]])*SazbaNaKilometr,\"\")","v":""},{"$f":"IF(COUNTA(Výdaje[[#This Row],[DATUM]:[TACHOMETR \n– KONEC]])=0,\"\",SUM(Výdaje[[#This Row],[HOTEL]:[DOPRAVA]],Výdaje[[#This Row],[STRAVA]:[RŮZNÉ]],((Výdaje[[#This Row],[TACHOMETR \n– KONEC]]-Výdaje[[#This Row],[TACHOMETR \n– ZAČÁTEK]])*(SazbaNaKilometr))))","v":{"v":0,"d":"0.00 Kč"}}]
[{"$nulls":11},{"$f":"IF(COUNTA(Výdaje[[#This Row],[TACHOMETR \n– ZAČÁTEK]:[TACHOMETR \n– KONEC]])=2,(Výdaje[[#This Row],[TACHOMETR \n– KONEC]]-Výdaje[[#This Row],[TACHOMETR \n– ZAČÁTEK]])*SazbaNaKilometr,\"\")","v":""},{"$f":"IF(COUNTA(Výdaje[[#This Row],[DATUM]:[TACHOMETR \n– KONEC]])=0,\"\",SUM(Výdaje[[#This Row],[HOTEL]:[DOPRAVA]],Výdaje[[#This Row],[STRAVA]:[RŮZNÉ]],((Výdaje[[#This Row],[TACHOMETR \n– KONEC]]-Výdaje[[#This Row],[TACHOMETR \n– ZAČÁTEK]])*(SazbaNaKilometr))))","v":{"v":0,"d":"0.00 Kč"}}]
[{"$nulls":11},{"$f":"IF(COUNTA(Výdaje[[#This Row],[TACHOMETR \n– ZAČÁTEK]:[TACHOMETR \n– KONEC]])=2,(Výdaje[[#This Row],[TACHOMETR \n– KONEC]]-Výdaje[[#This Row],[TACHOMETR \n– ZAČÁTEK]])*SazbaNaKilometr,\"\")","v":""},{"$f":"IF(COUNTA(Výdaje[[#This Row],[DATUM]:[TACHOMETR \n– KONEC]])=0,\"\",SUM(Výdaje[[#This Row],[HOTEL]:[DOPRAVA]],Výdaje[[#This Row],[STRAVA]:[RŮZNÉ]],((Výdaje[[#This Row],[TACHOMETR \n– KONEC]]-Výdaje[[#This Row],[TACHOMETR \n– ZAČÁTEK]])*(SazbaNaKilometr))))","v":{"v":0,"d":"0.00 Kč"}}]
[{"$nulls":11},{"$f":"IF(COUNTA(Výdaje[[#This Row],[TACHOMETR \n– ZAČÁTEK]:[TACHOMETR \n– KONEC]])=2,(Výdaje[[#This Row],[TACHOMETR \n– KONEC]]-Výdaje[[#This Row],[TACHOMETR \n– ZAČÁTEK]])*SazbaNaKilometr,\"\")","v":""},{"$f":"IF(COUNTA(Výdaje[[#This Row],[DATUM]:[TACHOMETR \n– KONEC]])=0,\"\",SUM(Výdaje[[#This Row],[HOTEL]:[DOPRAVA]],Výdaje[[#This Row],[STRAVA]:[RŮZNÉ]],((Výdaje[[#This Row],[TACHOMETR \n– KONEC]]-Výdaje[[#This Row],[TACHOMETR \n– ZAČÁTEK]])*(SazbaNaKilometr))))","v":{"v":0,"d":"0.00 Kč"}}]
[null,"SOUČTY",null,null,{"$f":"SUBTOTAL(109,Výdaje[HOTEL])","v":{"v":8900,"d":"8,900.00 Kč"}},{"$f":"SUBTOTAL(109,Výdaje[DOPRAVA])","v":{"v":4500,"d":"4,500.00 Kč"}},{"$f":"SUBTOTAL(109,Výdaje[STRAVA])","v":{"v":400,"d":"400.00 Kč"}},{"$f":"SUBTOTAL(109,Výdaje[TELEFON])","v":0},{"$f":"SUBTOTAL(109,Výdaje[RŮZNÉ])","v":{"v":1100,"d":"1,100.00 Kč"}},{"$nulls":3},{"$f":"SUBTOTAL(109,Výdaje[[CELKEM ]])","v":{"v":16277.000000000007,"d":"16,277.00 Kč"}}]
[{"$nulls":11},"ZÁLOHY",{"v":0,"d":"0.00 Kč"}]
[{"$nulls":11},"CELKEM",{"$f":"Výdaje[[#Totals],[CELKEM ]]-Zálohy","v":{"v":16277.000000000007,"d":"16,277.00 Kč"}}]